Cogmind - Beta 15 @@@ ROGUE MODE // 2025.07.15 @ 10:10:46 Player: beans Result: Destroyed by G-34 Mercenary with Small Laser Performance ------------- Evolutions (1) 500 Regions Visited (2) 400 Robots Destroyed (28) 140 Value Destroyed (689) 689 Prototype IDs (1) 20 Alien Tech Used (0) 0 Bonus (0) 0 TOTAL SCORE: 1749 Bonus ------- None Cogmind --------- Core Integrity 0/400 Matter 243/300 Energy 100/100 System Corruption 0% Temperature Cool (6) Movement Flying (32) Location -9/Materials Parts ------- > --- POWER (1) -------- (None) > --- PROPULSION (2) --- Improved VTOL Module Improved VTOL Module > --- UTILITY (3) ------ Signal Interpreter > --- WEAPON (3) ------- High-powered Shotgun High-powered Shotgun High-powered Shotgun > --- INVENTORY (5) ---- Particle Gun High-powered Shotgun Peak State ------------ > --- POWER ------------ (None) > --- PROPULSION ------- Improved VTOL Module Improved VTOL Module > --- UTILITY ---------- Signal Interpreter > --- WEAPON ----------- High-powered Shotgun High-powered Shotgun High-powered Shotgun > --- INVENTORY -------- Particle Gun High-powered Shotgun [Rating: 18] Favorites ----------- Power Ion Engine Engine Ion Engine Propulsion Light Treads Treads Light Treads Leg Improved Aluminum Leg Flight Unit Improved VTOL Module Utility Signal Interpreter Processor Signal Interpreter Protection Propulsion Shielding Weapon EM Pulse Gun Energy Gun EM Pulse Gun Ballistic Gun High-powered Shotgun Launcher Grenade Launcher Build | -11 -10 -9 ------- Run | Yrd Mat Mat Slots Evolved 2 | . . 2 Power . | . . . Propulsion . | . . . Utility 1 | . . 1 Weapon 1 | . . 1 Parts Attached 17 | 5 4 8 Power 1 | 1 . . Engine 1 | 1 . . Core . | . . . Reactor . | . . . Propulsion 5 | 2 . 3 Treads 2 | 2 . . Leg 1 | . . 1 Wheel . | . . . Hover . | . . . Flight 2 | . . 2 Utility 3 | . 3 . Device . | . . . Storage . | . . . Processor 2 | . 2 . Hackware . | . . . Protection 1 | . 1 . Artifact . | . . . Weapon 8 | 2 1 5 Energy Gun 4 | 2 . 2 Energy Cannon . | . . . Ballistic Gun 3 | . . 3 Ballistic Cannon . | . . . Launcher 1 | . 1 . Special Weapon . | . . . Impact Weapon . | . . . Slashing Weapon . | . . . Piercing Weapon . | . . . Special Melee Weapon . | . . . Unidentified Prototypes 1 | . . 1 Parts Lost 10 | . 7 3 Power 1 | . 1 . Propulsion 3 | . 2 1 Utility 2 | . 1 1 Weapon 4 | . 3 1 Highest Loss Streak 3 | . 3 2 To Critical Strikes . | . . . Average Backups . | . . . Power . | . . . Propulsion . | . . . Utility . | . . . Weapon . | . . . Tool/Special . | . . . Unused Backups 2 | 1 . 1 Power 1 | 1 . . Propulsion . | . . . Utility . | . . . Weapon 1 | . . 1 Tool/Special . | . . . Average Slot Usage (%) 60 | . 74 31 Engine 6 | . 10 . Treads 15 | . 23 . Leg 1 | . . 4 Processor 12 | . 12 11 Protection 3 | . 3 2 Energy Gun 14 | . 18 5 Ballistic Gun 1 | . . 6 Launcher 3 | . 5 . Peak Build Rating 18 | 5 7 18 Average Rating 5 | 4 5 5 On Entrance 2 | . 5 2 Naked Turns . | . . . Heaviest Build 11 | 9 11 9 Greatest Support 40 | 40 40 13 Greatest Overweight (x) 2 | 1 . 2 Average Overweight (x) . | . . . Largest Inventory Capacity 5 | 5 5 5 Average Capacity 5 | 5 5 5 Most Carried 3 | 2 1 3 Average Carried . | . . . Final Capacity 5 | 5 5 5 Final Carried 2 | . . 2 Class Distribution -------------------- 91% | Mutant 4% | Sprinter 3% | Gunner Dominant Class ---------------- Mutant | -10/Materials Mutant | -9/Materials Resources | -11 -10 -9 ----------- Run | Yrd Mat Mat Matter Collected 471 | 201 179 91 Remotely . | . . . Salvage Created 940 | . 566 374 Parts 59 | . 39 20 Haulers Intercepted 2 | . 1 1 Recyclers Shooed 1 | . 1 . Parts Field Recycled . | . . . Retrieved Matter . | . . . Parts Self-Destructed . | . . . Prevented . | . . . Kills | -11 -10 -9 ------- Run | Yrd Mat Mat Combat Hostiles Destroyed 17 | . 10 7 Guns 11 | . 4 7 AOE 6 | . 6 . Classes Destroyed 7 | . 6 1 Worker 1 | . 1 . Builder 6 | . 5 1 Hauler 2 | . 1 1 Watcher 2 | . 2 . Swarmer 2 | . 2 . Grunt 12 | . 8 4 Sentry 3 | . . 3 Best Kill Streak 8 | . 5 8 Combat Bots Only 6 | . 4 6 Max Kills in Single Turn 3 | . 3 1 Gunslinging . | . . . Exploded 1 | . 1 . Melee . | . . . Uniques/NPCs Destroyed . | . . . Combat | -11 -10 -9 -------- Run | Yrd Mat Mat Hostile Shots Fired 134 | . 67 67 Missed 43 | . 24 19 Hits 91 | . 43 48 Projectile 91 | . 43 48 Critical Strikes 1 | . . 1 Damage Taken 1312 | . 653 659 Core 512 | . 108 404 Absorbed by Shields . | . . . Redirected to Shielding 50 | . 38 12 Core Remaining (%) 78 | 100 56 . Volleys Fired 89 | . 43 46 Largest 3 | . 2 3 Hottest 115 | . 80 115 Shots Fired 138 | . 80 58 Gun 126 | . 68 58 Cannon . | . . . Launcher 12 | . 12 . Special . | . . . Kinetic 17 | . . 17 Thermal 41 | . . 41 Explosive 12 | . 12 . Electromagnetic 68 | . 68 . Robot Hit Streak 15 | . 8 15 Robot Miss Streak 10 | . 3 10 Penetration Max . | . . . Secondary Targets 1 | . 1 . Max Gunslinging Chain 1 | . 1 . Shots Hit Robots 73 | . 34 39 Core Hits 45 | . 26 19 Critical Kills . | . . . Critical Parts Destroyed . | . . . Critical Strikes 2 | . 1 1 Burn 1 | . . 1 Corrupt 1 | . 1 . Melee Attacks . | . . . Impact . | . . . Slashing . | . . . Piercing . | . . . Sneak Attacks . | . . . Combat Hostiles . | . . . Follow-up Attacks . | . . . Damage Inflicted 1643 | . 1013 630 Guns 1086 | . 456 630 Cannons . | . . . Explosions 557 | . 557 . Melee . | . . . Ramming . | . . . Kinetic 185 | . . 185 Thermal 574 | . 129 445 Explosive 428 | . 428 . Electromagnetic 456 | . 456 . Impact . | . . . Slashing . | . . . Piercing . | . . . Highest Corruption 1 | . 1 . Average Corruption 1 | . 1 . Corruption Purged . | . . . Corruption Blocked . | . . . Effects 2 | . 2 . Message Errors 2 | . 2 . Overload Shots . | . . . Overflow Damage 55 | . 55 . Projectiles . | . . . Explosions 55 | . 55 . Melee . | . . . Knockbacks . | . . . Impact . | . . . Kinetic . | . . . Secondary . | . . . Self-Inflicted Damage 193 | . 193 . Shots 8 | . 8 . Rammed . | . . . Targets Rammed . | . . . Kicked . | . . . Crushed . | . . . Highest Temperature 214 | . 214 108 Average Temperature 51 | . 58 31 Received Heat Transfer 444 | . 177 267 Siege Activations . | . . . Martial Activations . | . . . Shielding Activations . | . . . Robots Disrupted . | . . . Combat Hostiles . | . . . Robots Corrupted . | . . . Combat Hostiles . | . . . Parts Fried 3 | . 3 . Impact Corruptions . | . . . Robots Melted . | . . . Combat Hostiles . | . . . Parts Melted 8 | . . 8 Heat Transferred 1304 | . 200 1104 Parts Sabotaged . | . . . Parts Stolen . | . . . Parts Stripped . | . . . Power Chain Reactions 2 | . 2 . Alert | -11 -10 -9 ------- Run | Yrd Mat Mat Maximum Alert Level 1 | . 1 . Low Security (%) 99 | 100 98 100 Level 1 . | . 1 . Level 2 . | . . . Level 3 . | . . . Level 4 . | . . . Level 5 . | . . . High Security . | . . . Max Security . | . . . Peak Influence 205 | . 205 129 Initial 59 | . . 59 Average 72 | . 94 68 Influence Increases 631 | . 422 209 Destroy 0b10 Robot/C 340 | . 200 140 Destroy 0b10 Robot/NC 55 | . 45 10 Destroy Leader 88 | . 46 42 Disable Machine 30 | . 30 . Destroy Structure 88 | . 86 2 Lose Combat Pursuer 30 | . 15 15 Influence Decreases 523 | . 279 244 Entered New Map 84 | . . 84 Time Decay 339 | . 209 130 Lost Part 100 | . 70 30 Squads Dispatched 3 | . 2 1 Investigation 1 | . 1 . Extermination . | . . . Reinforcement 2 | . 1 1 Assault . | . . . Garrison . | . . . Intercept . | . . . Searches Triggered . | . . . Construction Impeded . | . . . Haulers Reinforced . | . . . Active Scanning Responses . | . . . Cargo Convoy Interrupts . | . . . Stealth | -11 -10 -9 --------- Run | Yrd Mat Mat Distress Signals 5 | . 2 3 Communications Jammed . | . . . Distress Signals . | . . . Times Spotted 30 | . 14 16 Peak Tracking Total 8 | . 3 8 Tactical Retreats 2 | . 1 1 Traps | -11 -10 -9 ------- Run | Yrd Mat Mat Traps Triggered 1 | . 1 . Indirectly . | . . . Trap Hack Attempts . | . . . Triggered . | . . . Disarmed . | . . . Reprogrammed . | . . . Reused . | . . . Traps Extracted . | . . . Installed . | . . . Triggered . | . . . Machines | -11 -10 -9 ---------- Run | Yrd Mat Mat Machines Disabled 4 | . 4 . Max in Single Turn 1 | . 1 . Machines Repaired . | . . . Machines Dismantled . | . . . Machines Sabotaged . | . . . Overloaded Fab Kills . | . . . Hacking | -11 -10 -9 --------- Run | Yrd Mat Mat Machines Accessed 1 | . 1 . Terminals 1 | . 1 . Fabricators . | . . . Repair Stations . | . . . Recycling Units . | . . . Scanalyzers . | . . . Garrison Access . | . . . Total Hacks 2 | . 2 . Successful . | . . . Failed 2 | . 2 . Catastrophic 1 | . 1 . Database Lockouts . | . . . Manual . | . . . Terminals 2 | . 2 . Fabricators . | . . . Repair Stations . | . . . Recycling Units . | . . . Scanalyzers . | . . . Garrison Access . | . . . Terminal Hacks . | . . . Fabricator Hacks . | . . . Repair Station Hacks . | . . . Recycling Unit Hacks . | . . . Scanalyzer . | . . . Garrison Access Hacks . | . . . Unauthorized Hacks . | . . . Terminals . | . . . Fabricators . | . . . Repair Stations . | . . . Recycling Units . | . . . Scanalyzers . | . . . Garrison Access . | . . . Data Cores Recovered . | . . . Used . | . . . Hacking Detections 1 | . 1 . Full Trace Events 1 | . 1 . Feedback Events . | . . . Feedback Blocked . | . . . Robot Schematics Acquired . | . . . Robots Built . | . . . Authchips . | . . . Time . | . . . Total Robot Build Rating . | . . . Part Schematics Acquired . | . . . Parts Built . | . . . Authchips . | . . . Time . | . . . Total Part Build Rating . | . . . Parts Repaired . | . . . Time . | . . . Parts Recycled . | . . . Recycled Matter . | . . . Retrieved Matter . | . . . Retrieved Components . | . . . Parts Scanalyzed . | . . . Part Schematics Acquired . | . . . Parts Damaged . | . . . Bothacking | -11 -10 -9 ------------ Run | Yrd Mat Mat Used RIF Installer . | . . . Robots Hacked . | . . . Non-combat . | . . . Combat . | . . . Robot Hacks Applied . | . . . Relay Couplers Released . | . . . Fabnet Peak Effective % . | . . . Robots Rewired . | . . . Allies Hacked . | . . . Hacks Repelled . | . . . Allies | -11 -10 -9 -------- Run | Yrd Mat Mat Total Allies . | . . . Largest Group . | . . . Highest-Rated Group . | . . . Highest-Rated Ally . | . . . Total Orders . | . . . Ally Attacks . | . . . Total Damage . | . . . Kills . | . . . Allies Corrupted . | . . . Allies Melted . | . . . Intel | -11 -10 -9 ------- Run | Yrd Mat Mat Active Infowar (turns) . | . . . Robot Analysis Total . | . . . Derelict Logs Recovered . | . . . Drone Launches . | . . . Drone Recoveries . | . . . Exploration | -11 -10 -9 ------------- Run | Yrd Mat Mat Turns Passed 958 | 146 543 269 Spaces Moved 534 | 92 269 173 Core 110 | 12 26 72 Treads 323 | 80 243 . Legs 73 | . . 73 Wheels . | . . . Hover . | . . . Flight 28 | . . 28 Fastest Speed 32 | 50 50 32 Average Speed 129 | 147 149 88 Slowest Speed 160 | 160 160 150 Overloaded Moves . | . . . Propulsion Burnouts . | . . . Robots Hopped . | . . . Potential Cave-ins . | . . . Cave-ins Triggered . | . . . Exploration Rate (%) 25 | 6 53 17 Regions Visited 2 Branch Regions . Pre-discovered Areas . | . . . Known Exits Taken 1 | . 1 . Unknown Exits Taken 1 | 1 . . Scrap Searched . | . . . Spaces Dug 12 | . 12 . Terrain Destroyed 91 | . 91 . Melee . | . . . Projectile . | . . . AOE 91 | . 91 . Terrain Rammed . | . . . Walls Destroyed . | . . . Machines Disabled . | . . . Actions | -11 -10 -9 --------- Run | Yrd Mat Mat Total 667 | 103 328 236 Wait 8 | . 8 . Move 532 | 91 268 173 Hop . | . . . Pick Up 17 | 6 2 9 Fast Attach 3 | . 3 . Attach 14 | 5 2 7 Detach . | . . . Swap 2 | . 1 1 Drop 2 | 1 1 . Fire 89 | . 43 46 Melee . | . . . Ram . | . . . Kick . | . . . Crush . | . . . Escape Stasis . | . . . Rewire . | . . . Trap . | . . . Miscellaneous . | . . . Route ------- -11/Scrapyard -10/Materials (discovered 3 exits: *Mat x2 / [*Min]) -9/Materials History --------- Turn | Location | Event 3 | -11/Scrapyard | Discovered new exit (range 15) 147 | -11/Scrapyard | Entered Materials 300 | -10/Materials | Build established: Mutant 309 | -10/Materials | Discovered new exit (range 11) 558 | -10/Materials | Discovered new exit (range 10) 685 | -10/Materials | Discovered new exit (range 10) 689 | -10/Materials | Identified exit to Materials 690 | -10/Materials | Entered another Materials area 690 | -9/Materials | Evolved 2 slots: Utility x1, Weapon x1 708 | -9/Materials | Lost 3 parts (1n1u1w) 838 | -9/Materials | Core integrity fell below 50% 856 | -9/Materials | Core integrity fell below 20% 959 | -9/Materials | Destroyed by G-34 Mercenary with Small Laser Last Messages --------------- U-05 Engineer destroyed. A-02 Transporter suffers critical hit (Burn). Acquired Hpw. Shotgun. Y-45 Defender destroyed. R-06 Scavenger collects Welding Torch. R-06 Scavenger collects Sml. Laser. Acquired 28 matter. R-06 Scavenger collects Terrain Scan Processor. K-01 Serf collects debris. Acquired Hpw. Shotgun. K-01 Serf collects debris. Acquired Hpw. Shotgun. K-01 Serf collects debris. Acquired Prototype Flight Unit. Identified Imp. VTOL Module. Acquired Imp. VTOL Module. A-02 Transporter destroyed. Acquired 33 matter. W-16 Scout sends out distress signal. U-05 Engineer builds a Door. Map ----- +----------------------------------------------------+ | ????????????????????????????????# + ### ### | | ????????????????????????????????# """ # | | ????????????????????????????????# """ # | | ?????????????????????????###????# """ # | | ????????????????????###### ####?##############+### | | ????????????????????# #?# #??????# | | ????????????????????# [#?# #??????# | | ????????????????????# #?# == #??????# | | ????????????????????# """ """ #?# =*=!#???? # | | ????????#???????????# """ """ ##########+## # | | ????????# ???######## """ """ + !%%=/ # | | ????????# ??# !!==# ##########[######### | | ????????# ??# !! # #????????# ######### | | ????????# ?# ####+######????????# | | ????????# ## ## #???????????# ###### | | ????????+ ^ ! =%! ############# #????? | | ????????# [[! ! k%% #????? | | ????????# ^[ [! #############/####????? | | ????????## ###+####### #????????# #????? | | ?????????# # #??## ##????????# """" #????? | | ?????????#?# #???# #?????????# """" #????? | | ???????????# """ #???# #?????????# """" #????? | | ???????????# """ #???# u #?????????# #????? | | ???????????# """ #???# #?????????#########????? | | ???????????# #???# #??????????????????????? | | ???????????########???# @#??????????????????????? | | ??????????????????????# + ?????????????????????? | | ??????????????????????# g# ???????????????????? | | ??????????????????????# u# ?????????????????? | | ??????????????????????# g #?#####????????????????? | | ??????????????????????# u #??????????????????????? | | ??????????????????????# ??????????????????????? | | ??????????????????????+ ??????????????????????? | | ??????????????????????# ??????????????????????? | | ??????????????????????# ??????????????????????? | | ??????????????????????# ?????????????????????? | | ??????????????????????/w ??????????????????????? | | ??????????????????????# #??????????????????????? | | ??????????????????????# ???????????????????????? | | ?????????????????????? ???????????????????????? | | ??????????????????????? ???????????????????????? | | ?????????????????????????????????????????????????? | | ?????????????????????????????????????????????????? | | ?????????????????????????????????????????????????? | | ?????????????????????????????????????????????????? | | ?????????????????????????????????????????????????? | | ?????????????????????????????????????????????????? | | ?????????????????????????????????????????????????? | | ?????????????????????????????????????????????????? | | ?????????????????????????????????????????????????? | +----------------------------------------------------+ Best States ------------- Heat Dissipation 28 Energy Generation 10 Energy Capacity 250 Matter Stores 300 Matter Capacity 300 Sight Range 16 Terrain Scan Density 10 Propulsion Shielding 33 Evasion (%) 55 Targeting Accuracy 5 Recoil Reduction 2 Item Schematics ----------------- None Robot Schematics ------------------ None Fabricated ------------ Nothing Repaired ---------- Nothing Alien Tech Used ----------------- None Achievements -------------- None Challenges ------------ None Game ------ Seed DispersalQuantumLauncher Manual? 0 Play Time 00:12:50 Cumulative 50.4 hours Start 2025.07.15 @ 10:00:28 End 2025.07.15 @ 10:10:46 Sessions 1 Manual Loads 0 Difficulty Rogue Special Mode None Game No. 232 Rogue 232 Adventurer 0 Explorer 0 Win Type - Total 0 Types 0/0/0/0/0/0/0/0/0/0 Lore% 34 Gallery% 27 Achievement% 23 Wizard Run 0 Options --------- Layout 2 ASCII 0 Keyboard 0 Movement Mouse Keybinds 0 Fullscreen 1 Font 24/Smallcaps Map View 50x44 Zoom Use 0% Tactical HUD 0 Map Filters NONE Filters NONE Steam 1 RUN: fb889676-f7b6-4e70-a1ef-e1af1a7762bd